Workbook

Sheet Feuil1
A2: Juge 1 | B2: Petites fautes | C2: 1 | D2: 18
B3: Fautes moyennes | C3: 3 | D3: 10
B4: Grandes fautes | C4: 5 | D4: 1
B5: Correction plus | C5: -0.5
B6: Correction moins | C6: +0.5
B7: Techniques oubliées | C7: 10
B8: Total | D8: =IF(D7<1,(170-((D2*1)+(D3*3)+(D4*5)+(D5*0.5)-(D6*0.5)+(D7*10))),((170-((D2*1)+(D3*3)+(D4*5)+(D5*0.5)-(D6*0.5)+(D7*10)))/2)) -> 117
A10: Juge 2 | B10: Petites fautes | C10: 1 | D10: 15
B11: Fautes moyennes | C11: 3 | D11: 6
B12: Grandes fautes | C12: 5 | D12: 5
B13: Correction plus | C13: -0.5 | D13: 2
B14: Correction moins | C14: +0.5 | D14: 4
B15: Techniques oubliées | C15: 10
B16: Total | D16: =IF(D15<1,(170-((D10*1)+(D11*3)+(D12*5)+(D13*0.5)-(D14*0.5)+(D15*10))),((170-((D10*1)+(D11*3)+(D12*5)+(D13*0.5)-(D14*0.5)+(D15*10)))/2)) -> 113
A18: Juge 3 | B18: Petites fautes | C18: 1 | D18: 5
B19: Fautes moyennes | C19: 3 | D19: 13
B20: Grandes fautes | C20: 5 | D20: 3
B21: Correction plus | C21: -0.5
B22: Correction moins | C22: +0.5
B23: Techniques oubliées | C23: 10
B24: Total | D24: =IF(D23<1,(170-((D18*1)+(D19*3)+(D20*5)+(D21*0.5)-(D22*0.5)+(D23*10))),((170-((D18*1)+(D19*3)+(D20*5)+(D21*0.5)-(D22*0.5)+(D23*10)))/2)) -> 111
A26: Juge 4 | B26: Petites fautes | C26: 1 | D26: 14
B27: Fautes moyennes | C27: 3 | D27: 11
B28: Grandes fautes | C28: 5 | D28: 3
B29: Correction plus | C29: -0.5
B30: Correction moins | C30: +0.5
B31: Techniques oubliées | C31: 10
B32: Total | D32: =IF(D31<1,(170-((D26*1)+(D27*3)+(D28*5)+(D29*0.5)-(D30*0.5)+(D31*10))),((170-((D26*1)+(D27*3)+(D28*5)+(D29*0.5)-(D30*0.5)+(D31*10)))/2)) -> 108
A34: Juge 5 | B34: Petites fautes | C34: 1 | D34: 16
B35: Fautes moyennes | C35: 3 | D35: 7
B36: Grandes fautes | C36: 5 | D36: 5
B37: Correction plus | C37: -0.5 | D37: 4
B38: Correction moins | C38: +0.5 | D38: 2
B39: Techniques oubliées | C39: 10
B40: Total | D40: =IF(D39<1,(170-((D34*1)+(D35*3)+(D36*5)+(D37*0.5)-(D38*0.5)+(D39*10))),((170-((D34*1)+(D35*3)+(D36*5)+(D37*0.5)-(D38*0.5)+(D39*10)))/2)) -> 107
D42: =(D8+D16+D24+D32+D40)-(MIN(D8,D16,D24,D32,D40))-(MAX(D8,D16,D24,D32,D40)) -> 332

Sheet Nage-no-Kata_5G
B2: NAGE-NO-KATA_5G | N2: 170
B4: Juge 1 | J4: Juge 2 | R4: Juge 3 | Z4: Juge 4 | AH4: Juge 5
B5: Petites fautes | C5: Fautes moyennes | D5: Grandes fautes | E5: Correction plus | F5: Correction moins | G5: Techniques oubliées | H5: Total Juge 1 | J5: Petites fautes | K5: Fautes moyennes | L5: Grandes fautes | M5: Correction plus | N5: Correction moins | O5: Techniques oubliées | P5: Total Juge 2 | R5: Petites fautes | S5: Fautes moyennes | T5: Grandes fautes | U5: Correction plus | V5: Correction moins | W5: Techniques oubliées | X5: Total Juge 3 | Z5: Petites fautes | AA5: Fautes moyennes | AB5: Grandes fautes | AC5: Correction plus | AD5: Correction moins | AE5: Techniques oubliées | AF5: Total Juge 4 | AH5: Petites fautes | AI5: Fautes moyennes | AJ5: Grandes fautes | AK5: Correction plus | AL5: Correction moins | AM5: Techniques oubliées | AN5: Total Juge 5
B6: 1 | C6: 3 | D6: 5 | E6: -0.5 | F6: +0.5 | G6: 10 | J6: 1 | K6: 3 | L6: 5 | M6: -0.5 | N6: +0.5 | O6: 10 | R6: 1 | S6: 3 | T6: 5 | U6: -0.5 | V6: +0.5 | W6: 10 | Z6: 1 | AA6: 3 | AB6: 5 | AC6: -0.5 | AD6: +0.5 | AE6: 10 | AH6: 1 | AI6: 3 | AJ6: 5 | AK6: -0.5 | AL6: +0.5 | AM6: 10
A8: Paire 1 | B8: 18 | C8: 10 | D8: 1 | H8: =IF(G8<1,($N$2-((B8*1)+(C8*3)+(D8*5)+(E8*0.5)-(F8*0.5)+(G8*10))),((170-((B8*1)+(C8*3)+(D8*5)+(E8*0.5)-(F8*0.5)+(G8*10)))/2)) -> 117 | J8: 15 | K8: 6 | L8: 5 | M8: 2 | N8: 4 | P8: =IF(O8<1,($N$2-((J8*1)+(K8*3)+(L8*5)+(M8*0.5)-(N8*0.5)+(O8*10))),($N$2-((J8*1)+(K8*3)+(L8*5)+(M8*0.5)-(N8*0.5)+(O8*10)))/2) -> 113 | R8: 5 | S8: 13 | T8: 3 | X8: =IF(W8<1,($N$2-((R8*1)+(S8*3)+(T8*5)+(U8*0.5)-(V8*0.5)+(W8*10))),(($N$2-((R8*1)+(S8*3)+(T8*5)+(U8*0.5)-(V8*0.5)+(W8*10)))/2)) -> 111 | Z8: 14 | AA8: 11 | AB8: 3 | AF8: =IF(AE8<1,($N$2-((Z8*1)+(AA8*3)+(AB8*5)+(AC8*0.5)-(AD8*0.5)+(AE8*10))),(($N$2-((Z8*1)+(AA8*3)+(AB8*5)+(AC8*0.5)-(AD8*0.5)+(AE8*10)))/2)) -> 108 | AH8: 16 | AI8: 7 | AJ8: 5 | AK8: 4 | AL8: 2 | AN8: =IF(AM8<1,($N$2-((AH8*1)+(AI8*3)+(AJ8*5)+(AK8*0.5)-(AL8*0.5)+(AM8*10))),(($N$2-((AH8*1)+(AI8*3)+(AJ8*5)+(AK8*0.5)-(AL8*0.5)+(AM8*10)))/2)) -> 107 | AP8: =(H8+P8+X8+AF8+AN8)-(MIN(H8,P8,X8,AF8,AN8))-(MAX(H8,P8,X8,AF8,AN8)) -> 332
A9: Paire 2 | H9: =IF(G9<1,($N$2-((B9*1)+(C9*3)+(D9*5)+(E9*0.5)-(F9*0.5)+(G9*10))),((170-((B9*1)+(C9*3)+(D9*5)+(E9*0.5)-(F9*0.5)+(G9*10)))/2)) -> 170 | P9: =IF(O9<1,($N$2-((J9*1)+(K9*3)+(L9*5)+(M9*0.5)-(N9*0.5)+(O9*10))),($N$2-((J9*1)+(K9*3)+(L9*5)+(M9*0.5)-(N9*0.5)+(O9*10)))/2) -> 170 | X9: =IF(W9<1,($N$2-((R9*1)+(S9*3)+(T9*5)+(U9*0.5)-(V9*0.5)+(W9*10))),(($N$2-((R9*1)+(S9*3)+(T9*5)+(U9*0.5)-(V9*0.5)+(W9*10)))/2)) -> 170 | AF9: =IF(AE9<1,($N$2-((Z9*1)+(AA9*3)+(AB9*5)+(AC9*0.5)-(AD9*0.5)+(AE9*10))),(($N$2-((Z9*1)+(AA9*3)+(AB9*5)+(AC9*0.5)-(AD9*0.5)+(AE9*10)))/2)) -> 170 | AN9: =IF(AM9<1,($N$2-((AH9*1)+(AI9*3)+(AJ9*5)+(AK9*0.5)-(AL9*0.5)+(AM9*10))),(($N$2-((AH9*1)+(AI9*3)+(AJ9*5)+(AK9*0.5)-(AL9*0.5)+(AM9*10)))/2)) -> 170 | AP9: =(H9+P9+X9+AF9+AN9)-(MIN(H9,P9,X9,AF9,AN9))-(MAX(H9,P9,X9,AF9,AN9)) -> 510
A10: Paire 3 | H10: =IF(G10<1,($N$2-((B10*1)+(C10*3)+(D10*5)+(E10*0.5)-(F10*0.5)+(G10*10))),((170-((B10*1)+(C10*3)+(D10*5)+(E10*0.5)-(F10*0.5)+(G10*10)))/2)) -> 170 | P10: =IF(O10<1,($N$2-((J10*1)+(K10*3)+(L10*5)+(M10*0.5)-(N10*0.5)+(O10*10))),($N$2-((J10*1)+(K10*3)+(L10*5)+(M10*0.5)-(N10*0.5)+(O10*10)))/2) -> 170 | X10: =IF(W10<1,($N$2-((R10*1)+(S10*3)+(T10*5)+(U10*0.5)-(V10*0.5)+(W10*10))),(($N$2-((R10*1)+(S10*3)+(T10*5)+(U10*0.5)-(V10*0.5)+(W10*10)))/2)) -> 170 | AF10: =IF(AE10<1,($N$2-((Z10*1)+(AA10*3)+(AB10*5)+(AC10*0.5)-(AD10*0.5)+(AE10*10))),(($N$2-((Z10*1)+(AA10*3)+(AB10*5)+(AC10*0.5)-(AD10*0.5)+(AE10*10)))/2)) -> 170 | AN10: =IF(AM10<1,($N$2-((AH10*1)+(AI10*3)+(AJ10*5)+(AK10*0.5)-(AL10*0.5)+(AM10*10))),(($N$2-((AH10*1)+(AI10*3)+(AJ10*5)+(AK10*0.5)-(AL10*0.5)+(AM10*10)))/2)) -> 170 | AP10: 510
A11: Paire 4 | H11: =IF(G11<1,($N$2-((B11*1)+(C11*3)+(D11*5)+(E11*0.5)-(F11*0.5)+(G11*10))),((170-((B11*1)+(C11*3)+(D11*5)+(E11*0.5)-(F11*0.5)+(G11*10)))/2)) -> 170 | P11: =IF(O11<1,($N$2-((J11*1)+(K11*3)+(L11*5)+(M11*0.5)-(N11*0.5)+(O11*10))),($N$2-((J11*1)+(K11*3)+(L11*5)+(M11*0.5)-(N11*0.5)+(O11*10)))/2) -> 170 | X11: =IF(W11<1,($N$2-((R11*1)+(S11*3)+(T11*5)+(U11*0.5)-(V11*0.5)+(W11*10))),(($N$2-((R11*1)+(S11*3)+(T11*5)+(U11*0.5)-(V11*0.5)+(W11*10)))/2)) -> 170 | AF11: =IF(AE11<1,($N$2-((Z11*1)+(AA11*3)+(AB11*5)+(AC11*0.5)-(AD11*0.5)+(AE11*10))),(($N$2-((Z11*1)+(AA11*3)+(AB11*5)+(AC11*0.5)-(AD11*0.5)+(AE11*10)))/2)) -> 170 | AN11: =IF(AM11<1,($N$2-((AH11*1)+(AI11*3)+(AJ11*5)+(AK11*0.5)-(AL11*0.5)+(AM11*10))),(($N$2-((AH11*1)+(AI11*3)+(AJ11*5)+(AK11*0.5)-(AL11*0.5)+(AM11*10)))/2)) -> 170 | AP11: 510
A12: Paire 5 | H12: =IF(G12<1,($N$2-((B12*1)+(C12*3)+(D12*5)+(E12*0.5)-(F12*0.5)+(G12*10))),((170-((B12*1)+(C12*3)+(D12*5)+(E12*0.5)-(F12*0.5)+(G12*10)))/2)) -> 170 | P12: =IF(O12<1,($N$2-((J12*1)+(K12*3)+(L12*5)+(M12*0.5)-(N12*0.5)+(O12*10))),($N$2-((J12*1)+(K12*3)+(L12*5)+(M12*0.5)-(N12*0.5)+(O12*10)))/2) -> 170 | X12: =IF(W12<1,($N$2-((R12*1)+(S12*3)+(T12*5)+(U12*0.5)-(V12*0.5)+(W12*10))),(($N$2-((R12*1)+(S12*3)+(T12*5)+(U12*0.5)-(V12*0.5)+(W12*10)))/2)) -> 170 | AF12: =IF(AE12<1,($N$2-((Z12*1)+(AA12*3)+(AB12*5)+(AC12*0.5)-(AD12*0.5)+(AE12*10))),(($N$2-((Z12*1)+(AA12*3)+(AB12*5)+(AC12*0.5)-(AD12*0.5)+(AE12*10)))/2)) -> 170 | AN12: =IF(AM12<1,($N$2-((AH12*1)+(AI12*3)+(AJ12*5)+(AK12*0.5)-(AL12*0.5)+(AM12*10))),(($N$2-((AH12*1)+(AI12*3)+(AJ12*5)+(AK12*0.5)-(AL12*0.5)+(AM12*10)))/2)) -> 170 | AP12: 510

Sheet Nage-no-Kata 3G
C1: CHAMPIONNAT SUISSE DE KATA / SCHWEIZER KATA MEISTERSCHAFT
C2: WINTERTHUR, LE 17 JUIN 2018
C5: NAGE-NO-KATA_3G | M5: 110
C7: Juge 1 | K7: Juge 2 | S7: Juge 3 | AA7: Juge 4 | AI7: Juge 5
C8: Petites fautes | D8: Fautes moyennes | E8: Grandes fautes | F8: Correction moins | G8: Correction plus | H8: Techniques oubliées | I8: Total Juge 1 | K8: Petites fautes | L8: Fautes moyennes | M8: Grandes fautes | N8: Correction moins | O8: Correction plus | P8: Techniques oubliées | Q8: Total Juge 2 | S8: Petites fautes | T8: Fautes moyennes | U8: Grandes fautes | V8: Correction moins | W8: Correction plus | X8: Techniques oubliées | Y8: Total Juge 3 | AA8: Petites fautes | AB8: Fautes moyennes | AC8: Grandes fautes | AD8: Correction moins | AE8: Correction plus | AF8: Techniques oubliées | AG8: Total Juge 4 | AI8: Petites fautes | AJ8: Fautes moyennes | AK8: Grandes fautes | AL8: Correction moins | AM8: Correction plus | AN8: Techniques oubliées | AO8: Total Juge 5
C9: 1 | D9: 3 | E9: 5 | F9: -0.5 | G9: +0.5 | H9: 10 | K9: 1 | L9: 3 | M9: 5 | N9: -0.5 | O9: +0.5 | P9: 10 | S9: 1 | T9: 3 | U9: 5 | V9: -0.5 | W9: +0.5 | X9: 10 | AA9: 1 | AB9: 3 | AC9: 5 | AD9: -0.5 | AE9: +0.5 | AF9: 10 | AI9: 1 | AJ9: 3 | AK9: 5 | AL9: -0.5 | AM9: +0.5 | AN9: 10
A11: 1 | B11: KAMBER Hector - KAMBER Emma | I11: =IF(H11<1,($M$5-((C11*1)+(D11*3)+(E11*5)+(F11*0.5)-(G11*0.5)+(H11*10))),(($M$5-((C11*1)+(D11*3)+(E11*5)+(F11*0.5)-(G11*0.5)+(H11*10)))/2)) -> 110 | Q11: =IF(P11<1,($M$5-((K11*1)+(L11*3)+(M11*5)+(N11*0.5)-(O11*0.5)+(P11*10))),($M$5-((K11*1)+(L11*3)+(M11*5)+(N11*0.5)-(O11*0.5)+(P11*10)))/2) -> 110 | Y11: =IF(X11<1,($M$5-((S11*1)+(T11*3)+(U11*5)+(V11*0.5)-(W11*0.5)+(X11*10))),(($M$5-((S11*1)+(T11*3)+(U11*5)+(V11*0.5)-(W11*0.5)+(X11*10)))/2)) -> 110 | AG11: =IF(AF11<1,($M$5-((AA11*1)+(AB11*3)+(AC11*5)+(AD11*0.5)-(AE11*0.5)+(AF11*10))),(($M$5-((AA11*1)+(AB11*3)+(AC11*5)+(AD11*0.5)-(AE11*0.5)+(AF11*10)))/2)) -> 110 | AO11: =IF(AN11<1,($M$5-((AI11*1)+(AJ11*3)+(AK11*5)+(AL11*0.5)-(AM11*0.5)+(AN11*10))),(($M$5-((AI11*1)+(AJ11*3)+(AK11*5)+(AL11*0.5)-(AM11*0.5)+(AN11*10)))/2)) -> 110 | AQ11: =(I11+Q11+Y11+AG11+AO11)-(MIN(I11,Q11,Y11,AG11,AO11))-(MAX(I11,Q11,Y11,AG11,AO11)) -> 330
A12: 2 | B12: ZÜRCHER Mael - WERNLI Nadine | I12: =IF(H12<1,($M$5-((C12*1)+(D12*3)+(E12*5)+(F12*0.5)-(G12*0.5)+(H12*10))),(($M$5-((C12*1)+(D12*3)+(E12*5)+(F12*0.5)-(G12*0.5)+(H12*10)))/2)) -> 110 | Q12: 110 | Y12: 110 | AG12: 110 | AO12: 110 | AQ12: =(I12+Q12+Y12+AG12+AO12)-(MIN(I12,Q12,Y12,AG12,AO12))-(MAX(I12,Q12,Y12,AG12,AO12)) -> 330
A13: 3 | B13: ASTON Victoria - STRÖSLIN Leonie | I13: 110 | Q13: 110 | Y13: 110 | AG13: 110 | AO13: 110 | AQ13: 330
A14: 4 | B14: BRÄNDLE Shaila - UHLMANN Laura | I14: 110 | Q14: 110 | Y14: 110 | AG14: 110 | AO14: 110 | AQ14: 330
A15: 5 | B15: GEX-FABRY Félicie - VITELLOZZI Ricardo | I15: 110 | Q15: 110 | Y15: 110 | AG15: 110 | AO15: 110 | AQ15: 330
A16: 6 | B16: BIGOT Yoan - GEX-FABRY Candide | I16: =IF(H16<1,($M$5-((C16*1)+(D16*3)+(E16*5)+(F16*0.5)-(G16*0.5)+(H16*10))),(($M$5-((C16*1)+(D16*3)+(E16*5)+(F16*0.5)-(G16*0.5)+(H16*10)))/2)) -> 110 | Q16: 110 | Y16: 110 | AG16: 110 | AO16: 110 | AQ16: =(I16+Q16+Y16+AG16+AO16)-(MIN(I16,Q16,Y16,AG16,AO16))-(MAX(I16,Q16,Y16,AG16,AO16)) -> 330

Sheet NAGE-NO-KATA
C1: CHAMPIONNAT SUISSE DE KATA / SCHWEIZER KATA MEISTERSCHAFT
C2: WINTERTHUR, LE 17 JUIN 2018
C5: NAGE-NO-KATA | K5: 170
C7: Juge 1 | K7: Juge 2 | S7: Juge 3 | AA7: Juge 4 | AI7: Juge 5
C8: Petites fautes | D8: Fautes moyennes | E8: Grandes fautes | F8: Correction moins | G8: Correction plus | H8: Techniques oubliées | I8: Total juge 1 | K8: Petites fautes | L8: Fautes moyennes | M8: Grandes fautes | N8: Correction moins | O8: Correction plus | P8: Techniques oubliées | Q8: Total Juge 2 | S8: Petites fautes | T8: Fautes moyennes | U8: Grandes fautes | V8: Correction moins | W8: Correction plus | X8: Techniques oubliées | Y8: Total Juge 3 | AA8: Petites fautes | AB8: Fautes moyennes | AC8: Grandes fautes | AD8: Correction moins | AE8: Correction plus | AF8: Techniques oubliées | AG8: Total Juge 4 | AI8: Petites fautes | AJ8: Fautes moyennes | AK8: Grandes fautes | AL8: Correction moins | AM8: Correction plus | AN8: Techniques oubliées | AO8: Total Juge 5
C9: 1 | D9: 3 | E9: 5 | F9: -0.5 | G9: +0.5 | H9: 10 | I9: 10 | K9: 1 | L9: 3 | M9: 5 | N9: -0.5 | O9: +0.5 | P9: 10 | S9: 1 | T9: 3 | U9: 5 | V9: -0.5 | W9: +0.5 | X9: 10 | AA9: 1 | AB9: 3 | AC9: 5 | AD9: -0.5 | AE9: +0.5 | AF9: 10 | AI9: 1 | AJ9: 3 | AK9: 5 | AL9: -0.5 | AM9: +0.5 | AN9: 10
I10: =IF(H10<1,(#REF!-((C10*1)+(D10*3)+(E10*5)+(F10*0.5)-(G10*0.5)+(H10*10))),((#REF!-((C10*1)+(D10*3)+(E10*5)+(F10*0.5)-(G10*0.5)+(H10*10)))/2)) -> 
A11: 1 | B11: REZGALLAH Yassin - REZGALLAH Samy | I11: =IF(H11<1,($K$5-((C11*1)+(D11*3)+(E11*5)+(F11*0.5)-(G11*0.5)+(H11*10))),(($K$5-((C11*1)+(D11*3)+(E11*5)+(F11*0.5)-(G11*0.5)+(H11*10)))/2)) -> 170 | Q11: =IF(P11<1,($K$5-((K11*1)+(L11*3)+(M11*5)+(N11*0.5)-(O11*0.5)+(P11*10))),($K$5-((K11*1)+(L11*3)+(M11*5)+(N11*0.5)-(O11*0.5)+(P11*10)))/2) -> 170 | X11: 1 | Y11: =IF(X11<1,($K$5-((S11*1)+(T11*3)+(U11*5)+(V11*0.5)-(W11*0.5)+(X11*10))),(($K$5-((S11*1)+(T11*3)+(U11*5)+(V11*0.5)-(W11*0.5)+(X11*10)))/2)) -> 80 | AF11: 1 | AG11: =IF(AF11<1,($K$5-((AA11*1)+(AB11*3)+(AC11*5)+(AD11*0.5)-(AE11*0.5)+(AF11*10))),(($K$5-((AA11*1)+(AB11*3)+(AC11*5)+(AD11*0.5)-(AE11*0.5)+(AF11*10)))/2)) -> 80 | AO11: =IF(AN11<1,($K$5-((AI11*1)+(AJ11*3)+(AK11*5)+(AL11*0.5)-(AM11*0.5)+(AN11*10))),(($K$5-((AI11*1)+(AJ11*3)+(AK11*5)+(AL11*0.5)-(AM11*0.5)+(AN11*10)))/2)) -> 170 | AQ11: =(I11+Q11+Y11+AG11+AO11)-(MIN(I11,Q11,Y11,AG11,AO11))-(MAX(I11,Q11,Y11,AG11,AO11)) -> 420
A12: 2 | B12: WEBER Gian-Lucca - HEGER Serafin | I12: 170 | Q12: 170 | Y12: 170 | AG12: 170 | AO12: 170 | AQ12: 510
A13: 3 | B13: DÜRRENBERGER Reto - BRANDT Dominik | I13: 170 | Q13: 170 | Y13: 170 | AG13: 170 | AO13: 170 | AQ13: 510
A14: 4 | B14: PANDOLFI Zacharie - PANDOLFI Al | I14: 170 | Q14: 170 | Y14: 170 | AG14: 170 | AO14: 170 | AQ14: 510
A15: 5 | B15: KÜBLER Michèle - STAUFFER Sonia | I15: 170 | Q15: 170 | Y15: 170 | AG15: 170 | AO15: 170 | AQ15: 510
A16: 6 | B16: MOSER Dominic - MOSER Yanick | I16: 170 | Q16: 170 | Y16: 170 | AG16: 170 | AO16: 170 | AQ16: 510

Sheet KATAME-NO-KATA
C1: CHAMPIONNAT SUISSE DE KATA / SCHWEIZER KATA MEISTERSCHAFT
C2: WINTERTHUR, LE 17 JUIN 2018
C5: KATAME-NO-KATA | O5: 170
C7: Juge 1 | K7: Juge 2 | S7: Juge 3 | AA7: Juge 4 | AI7: Juge 5
C8: Petites fautes | D8: Fautes moyennes | E8: Grandes fautes | F8: Correction moins | G8: Correction plus | H8: Techniques oubliées | I8: Total Juge 1 | K8: Petites fautes | L8: Fautes moyennes | M8: Grandes fautes | N8: Correction moins | O8: Correction plus | P8: Techniques oubliées | Q8: Total Juge 2 | S8: Petites fautes | T8: Fautes moyennes | U8: Grandes fautes | V8: Correction moins | W8: Correction plus | X8: Techniques oubliées | Y8: Total Juge 3 | AA8: Petites fautes | AB8: Fautes moyennes | AC8: Grandes fautes | AD8: Correction moins | AE8: Correction plus | AF8: Techniques oubliées | AG8: Total Juge 4 | AI8: Petites fautes | AJ8: Fautes moyennes | AK8: Grandes fautes | AL8: Correction moins | AM8: Correction plus | AN8: Techniques oubliées | AO8: Total Juge 5
C9: 1 | D9: 3 | E9: 5 | F9: -0.5 | G9: +0.5 | H9: 10 | K9: 1 | L9: 3 | M9: 5 | N9: -0.5 | O9: +0.5 | P9: 10 | S9: 1 | T9: 3 | U9: 5 | V9: -0.5 | W9: +0.5 | X9: 10 | AA9: 1 | AB9: 3 | AC9: 5 | AD9: -0.5 | AE9: +0.5 | AF9: 10 | AI9: 1 | AJ9: 3 | AK9: 5 | AL9: -0.5 | AM9: +0.5 | AN9: 10
A11: 1 | B11: DÜRRENBERGER Reto - BRANDT Dominik | I11: =IF(H11<1,($O$5-((C11*1)+(D11*3)+(E11*5)+(F11*0.5)-(G11*0.5)+(H11*10))),($O$5-((C11*1)+(D11*3)+(E11*5)+(F11*0.5)-(G11*0.5)+(H11*10)))/2) -> 170 | Q11: =IF(P11<1,($O$5-((K11*1)+(L11*3)+(M11*5)+(N11*0.5)-(O11*0.5)+(P11*10))),($O$5-((K11*1)+(L11*3)+(M11*5)+(N11*0.5)-(O11*0.5)+(P11*10)))/2) -> 170 | Y11: =IF(X11<1,($O$5-((S11*1)+(T11*3)+(U11*5)+(V11*0.5)-(W11*0.5)+(X11*10))),(($O$5-((S11*1)+(T11*3)+(U11*5)+(V11*0.5)-(W11*0.5)+(X11*10)))/2)) -> 170 | AG11: =IF(AF11<1,($O$5-((AA11*1)+(AB11*3)+(AC11*5)+(AD11*0.5)-(AE11*0.5)+(AF11*10))),(($O$5-((AA11*1)+(AB11*3)+(AC11*5)+(AD11*0.5)-(AE11*0.5)+(AF11*10)))/2)) -> 170 | AO11: =IF(AN11<1,($O$5-((AI11*1)+(AJ11*3)+(AK11*5)+(AL11*0.5)-(AM11*0.5)+(AN11*10))),(($O$5-((AI11*1)+(AJ11*3)+(AK11*5)+(AL11*0.5)-(AM11*0.5)+(AN11*10)))/2)) -> 170 | AQ11: =(I11+Q11+Y11+AG11+AO11)-(MIN(I11,Q11,Y11,AG11,AO11))-(MAX(I11,Q11,Y11,AG11,AO11)) -> 510
A12: 2 | B12: STAHLI Désirée - STAHLI Sarah | I12: =IF(H12<1,($O$5-((C12*1)+(D12*3)+(E12*5)+(F12*0.5)-(G12*0.5)+(H12*10))),($O$5-((C12*1)+(D12*3)+(E12*5)+(F12*0.5)-(G12*0.5)+(H12*10)))/2) -> 170 | Q12: =IF(P12<1,($O$5-((K12*1)+(L12*3)+(M12*5)+(N12*0.5)-(O12*0.5)+(P12*10))),($O$5-((K12*1)+(L12*3)+(M12*5)+(N12*0.5)-(O12*0.5)+(P12*10)))/2) -> 170 | Y12: =IF(X12<1,($O$5-((S12*1)+(T12*3)+(U12*5)+(V12*0.5)-(W12*0.5)+(X12*10))),(($O$5-((S12*1)+(T12*3)+(U12*5)+(V12*0.5)-(W12*0.5)+(X12*10)))/2)) -> 170 | AG12: =IF(AF12<1,($O$5-((AA12*1)+(AB12*3)+(AC12*5)+(AD12*0.5)-(AE12*0.5)+(AF12*10))),(($O$5-((AA12*1)+(AB12*3)+(AC12*5)+(AD12*0.5)-(AE12*0.5)+(AF12*10)))/2)) -> 170 | AO12: =IF(AN12<1,($O$5-((AI12*1)+(AJ12*3)+(AK12*5)+(AL12*0.5)-(AM12*0.5)+(AN12*10))),(($O$5-((AI12*1)+(AJ12*3)+(AK12*5)+(AL12*0.5)-(AM12*0.5)+(AN12*10)))/2)) -> 170 | AQ12: =(I12+Q12+Y12+AG12+AO12)-(MIN(I12,Q12,Y12,AG12,AO12))-(MAX(I12,Q12,Y12,AG12,AO12)) -> 510
A13: 3 | B13: STAUFFER Sonia - KÜBLER Michèle | I13: =IF(H13<1,($O$5-((C13*1)+(D13*3)+(E13*5)+(F13*0.5)-(G13*0.5)+(H13*10))),($O$5-((C13*1)+(D13*3)+(E13*5)+(F13*0.5)-(G13*0.5)+(H13*10)))/2) -> 170 | Q13: =IF(P13<1,($O$5-((K13*1)+(L13*3)+(M13*5)+(N13*0.5)-(O13*0.5)+(P13*10))),($O$5-((K13*1)+(L13*3)+(M13*5)+(N13*0.5)-(O13*0.5)+(P13*10)))/2) -> 170 | Y13: =IF(X13<1,($O$5-((S13*1)+(T13*3)+(U13*5)+(V13*0.5)-(W13*0.5)+(X13*10))),(($O$5-((S13*1)+(T13*3)+(U13*5)+(V13*0.5)-(W13*0.5)+(X13*10)))/2)) -> 170 | AG13: =IF(AF13<1,($O$5-((AA13*1)+(AB13*3)+(AC13*5)+(AD13*0.5)-(AE13*0.5)+(AF13*10))),(($O$5-((AA13*1)+(AB13*3)+(AC13*5)+(AD13*0.5)-(AE13*0.5)+(AF13*10)))/2)) -> 170 | AO13: =IF(AN13<1,($O$5-((AI13*1)+(AJ13*3)+(AK13*5)+(AL13*0.5)-(AM13*0.5)+(AN13*10))),(($O$5-((AI13*1)+(AJ13*3)+(AK13*5)+(AL13*0.5)-(AM13*0.5)+(AN13*10)))/2)) -> 170 | AQ13: 510
I14: =IF(H14<1,($O$5-((C14*1)+(D14*3)+(E14*5)+(F14*0.5)-(G14*0.5)+(H14*10))),($O$5-((C14*1)+(D14*3)+(E14*5)+(F14*0.5)-(G14*0.5)+(H14*10)))/2) -> 170 | Q14: =IF(P14<1,($O$5-((K14*1)+(L14*3)+(M14*5)+(N14*0.5)-(O14*0.5)+(P14*10))),($O$5-((K14*1)+(L14*3)+(M14*5)+(N14*0.5)-(O14*0.5)+(P14*10)))/2) -> 170 | Y14: =IF(X14<1,($O$5-((S14*1)+(T14*3)+(U14*5)+(V14*0.5)-(W14*0.5)+(X14*10))),(($O$5-((S14*1)+(T14*3)+(U14*5)+(V14*0.5)-(W14*0.5)+(X14*10)))/2)) -> 170 | AG14: =IF(AF14<1,($O$5-((AA14*1)+(AB14*3)+(AC14*5)+(AD14*0.5)-(AE14*0.5)+(AF14*10))),(($O$5-((AA14*1)+(AB14*3)+(AC14*5)+(AD14*0.5)-(AE14*0.5)+(AF14*10)))/2)) -> 170 | AO14: =IF(AN14<1,($O$5-((AI14*1)+(AJ14*3)+(AK14*5)+(AL14*0.5)-(AM14*0.5)+(AN14*10))),(($O$5-((AI14*1)+(AJ14*3)+(AK14*5)+(AL14*0.5)-(AM14*0.5)+(AN14*10)))/2)) -> 170 | AQ14: 510
I15: =IF(H15<1,($O$5-((C15*1)+(D15*3)+(E15*5)+(F15*0.5)-(G15*0.5)+(H15*10))),($O$5-((C15*1)+(D15*3)+(E15*5)+(F15*0.5)-(G15*0.5)+(H15*10)))/2) -> 170 | Q15: =IF(P15<1,($O$5-((K15*1)+(L15*3)+(M15*5)+(N15*0.5)-(O15*0.5)+(P15*10))),($O$5-((K15*1)+(L15*3)+(M15*5)+(N15*0.5)-(O15*0.5)+(P15*10)))/2) -> 170 | Y15: =IF(X15<1,($O$5-((S15*1)+(T15*3)+(U15*5)+(V15*0.5)-(W15*0.5)+(X15*10))),(($O$5-((S15*1)+(T15*3)+(U15*5)+(V15*0.5)-(W15*0.5)+(X15*10)))/2)) -> 170 | AG15: =IF(AF15<1,($O$5-((AA15*1)+(AB15*3)+(AC15*5)+(AD15*0.5)-(AE15*0.5)+(AF15*10))),(($O$5-((AA15*1)+(AB15*3)+(AC15*5)+(AD15*0.5)-(AE15*0.5)+(AF15*10)))/2)) -> 170 | AO15: =IF(AN15<1,($O$5-((AI15*1)+(AJ15*3)+(AK15*5)+(AL15*0.5)-(AM15*0.5)+(AN15*10))),(($O$5-((AI15*1)+(AJ15*3)+(AK15*5)+(AL15*0.5)-(AM15*0.5)+(AN15*10)))/2)) -> 170 | AQ15: 510

Sheet KIME-NO-KATA
C1: CHAMPIONNAT SUISSE DE KATA / SCHWEIZER KATA MEISTERSCHAFT
C2: WINTERTHUR, LE 17 JUIN 2018
C5: KIME-NO-KATA | K5: 220
C7: Juge 1 | K7: Juge 2 | S7: Juge 3 | AA7: Juge 4 | AI7: Juge 5
C8: Petites fautes | D8: Fautes moyennes | E8: Grandes fautes | F8: Correction moins | G8: Correction plus | H8: Techniques oubliées | I8: Total Juge 1 | K8: Petites fautes | L8: Fautes moyennes | M8: Grandes fautes | N8: Correction moins | O8: Correction plus | P8: Techniques oubliées | Q8: Total Juge 2 | S8: Petites fautes | T8: Fautes moyennes | U8: Grandes fautes | V8: Correction moins | W8: Correction plus | X8: Techniques oubliées | Y8: Total Juge 3 | AA8: Petites fautes | AB8: Fautes moyennes | AC8: Grandes fautes | AD8: Correction moins | AE8: Correction plus | AF8: Techniques oubliées | AG8: Total Juge 4 | AI8: Petites fautes | AJ8: Fautes moyennes | AK8: Grandes fautes | AL8: Correction moins | AM8: Correction plus | AN8: Techniques oubliées | AO8: Total Juge 5
C9: 1 | D9: 3 | E9: 5 | F9: -0.5 | G9: +0.5 | H9: 10 | K9: 1 | L9: 3 | M9: 5 | N9: -0.5 | O9: +0.5 | P9: 10 | S9: 1 | T9: 3 | U9: 5 | V9: -0.5 | W9: +0.5 | X9: 10 | AA9: 1 | AB9: 3 | AC9: 5 | AD9: -0.5 | AE9: +0.5 | AF9: 10 | AI9: 1 | AJ9: 3 | AK9: 5 | AL9: -0.5 | AM9: +0.5 | AN9: 10
A11: 1 | B11: LOY Karine - BAYEJOO Pascal | I11: =IF(H11<1,($K$5-((C11*1)+(D11*3)+(E11*5)+(F11*0.5)-(G11*0.5)+(H11*10))),($K$5-((C11*1)+(D11*3)+(E11*5)+(F11*0.5)-(G11*0.5)+(H11*10)))/2) -> 220 | Q11: =IF(P11<1,($K$5-((K11*1)+(L11*3)+(M11*5)+(N11*0.5)-(O11*0.5)+(P11*10))),($K$5-((K11*1)+(L11*3)+(M11*5)+(N11*0.5)-(O11*0.5)+(P11*10)))/2) -> 220 | Y11: =IF(X11<1,($K$5-((S11*1)+(T11*3)+(U11*5)+(V11*0.5)-(W11*0.5)+(X11*10))),(($K$5-((S11*1)+(T11*3)+(U11*5)+(V11*0.5)-(W11*0.5)+(X11*10)))/2)) -> 220 | AG11: =IF(AF11<1,($K$5-((AA11*1)+(AB11*3)+(AC11*5)+(AD11*0.5)-(AE11*0.5)+(AF11*10))),(($K$5-((AA11*1)+(AB11*3)+(AC11*5)+(AD11*0.5)-(AE11*0.5)+(AF11*10)))/2)) -> 220 | AO11: =IF(AN11<1,($K$5-((AI11*1)+(AJ11*3)+(AK11*5)+(AL11*0.5)-(AM11*0.5)+(AN11*10))),(($K$5-((AI11*1)+(AJ11*3)+(AK11*5)+(AL11*0.5)-(AM11*0.5)+(AN11*10)))/2)) -> 220 | AQ11: =(I11+Q11+Y11+AG11+AO11)-(MIN(I11,Q11,Y11,AG11,AO11))-(MAX(I11,Q11,Y11,AG11,AO11)) -> 660
A12: 2 | B12: BUSIGNY Denis - VILLEMIN Pascal | I12: =IF(H12<1,($K$5-((C12*1)+(D12*3)+(E12*5)+(F12*0.5)-(G12*0.5)+(H12*10))),($K$5-((C12*1)+(D12*3)+(E12*5)+(F12*0.5)-(G12*0.5)+(H12*10)))/2) -> 220 | Q12: =IF(P12<1,($K$5-((K12*1)+(L12*3)+(M12*5)+(N12*0.5)-(O12*0.5)+(P12*10))),($K$5-((K12*1)+(L12*3)+(M12*5)+(N12*0.5)-(O12*0.5)+(P12*10)))/2) -> 220 | Y12: =IF(X12<1,($K$5-((S12*1)+(T12*3)+(U12*5)+(V12*0.5)-(W12*0.5)+(X12*10))),(($K$5-((S12*1)+(T12*3)+(U12*5)+(V12*0.5)-(W12*0.5)+(X12*10)))/2)) -> 220 | AG12: =IF(AF12<1,($K$5-((AA12*1)+(AB12*3)+(AC12*5)+(AD12*0.5)-(AE12*0.5)+(AF12*10))),(($K$5-((AA12*1)+(AB12*3)+(AC12*5)+(AD12*0.5)-(AE12*0.5)+(AF12*10)))/2)) -> 220 | AO12: =IF(AN12<1,($K$5-((AI12*1)+(AJ12*3)+(AK12*5)+(AL12*0.5)-(AM12*0.5)+(AN12*10))),(($K$5-((AI12*1)+(AJ12*3)+(AK12*5)+(AL12*0.5)-(AM12*0.5)+(AN12*10)))/2)) -> 220 | AQ12: =(I12+Q12+Y12+AG12+AO12)-(MIN(I12,Q12,Y12,AG12,AO12))-(MAX(I12,Q12,Y12,AG12,AO12)) -> 660
A13: 3 | B13: UHLMANN Patrizia - SALUD Carlos | I13: 220 | Q13: 220 | Y13: 220 | AG13: 220 | AO13: 220 | AQ13: 660
I14: 220 | Q14: 220 | Y14: 220 | AG14: 220 | AO14: 220 | AQ14: 660
I15: 220 | Q15: 220 | Y15: 220 | AG15: 220 | AO15: 220 | AQ15: 660

Sheet JU-NO-KATA
C1: CHAMPIONNAT SUISSE DE KATA / SCHWEIZER KATA MEISTERSCHAFT
C2: WINTERTHUR, LE 17 JUIN 2018
C5: JU-NO-KATA | K5: 170
C7: Juge 1 | K7: Juge 2 | S7: Juge 3 | AA7: Juge 4 | AI7: Juge 5
C8: Petites fautes | D8: Fautes moyennes | E8: Grandes fautes | F8: Correction moins | G8: Correction plus | H8: Techniques oubliées | I8: Total Juge 1 | K8: Petites fautes | L8: Fautes moyennes | M8: Grandes fautes | N8: Correction moins | O8: Correction plus | P8: Techniques oubliées | Q8: Total Juge 2 | S8: Petites fautes | T8: Fautes moyennes | U8: Grandes fautes | V8: Correction moins | W8: Correction plus | X8: Techniques oubliées | Y8: Total Juge 3 | AA8: Petites fautes | AB8: Fautes moyennes | AC8: Grandes fautes | AD8: Correction moins | AE8: Correction plus | AF8: Techniques oubliées | AG8: Total Juge 4 | AI8: Petites fautes | AJ8: Fautes moyennes | AK8: Grandes fautes | AL8: Correction moins | AM8: Correction plus | AN8: Techniques oubliées | AO8: Total Juge 5
C9: 1 | D9: 3 | E9: 5 | F9: -0.5 | G9: +0.5 | H9: 10 | K9: 1 | L9: 3 | M9: 5 | N9: -0.5 | O9: +0.5 | P9: 10 | S9: 1 | T9: 3 | U9: 5 | V9: -0.5 | W9: +0.5 | X9: 10 | AA9: 1 | AB9: 3 | AC9: 5 | AD9: -0.5 | AE9: +0.5 | AF9: 10 | AI9: 1 | AJ9: 3 | AK9: 5 | AL9: -0.5 | AM9: +0.5 | AN9: 10
A11: 1 | B11: DUPRE Pascal - KUNZMANN Laura | I11: =IF(H11<1,($K$5-((C11*1)+(D11*3)+(E11*5)+(F11*0.5)-(G11*0.5)+(H11*10))),($K$5-((C11*1)+(D11*3)+(E11*5)+(F11*0.5)-(G11*0.5)+(H11*10)))/2) -> 170 | Q11: =IF(P11<1,($K$5-((K11*1)+(L11*3)+(M11*5)+(N11*0.5)-(O11*0.5)+(P11*10))),($K$5-((K11*1)+(L11*3)+(M11*5)+(N11*0.5)-(O11*0.5)+(P11*10)))/2) -> 170 | Y11: =IF(X11<1,($K$5-((S11*1)+(T11*3)+(U11*5)+(V11*0.5)-(W11*0.5)+(X11*10))),(($K$5-((S11*1)+(T11*3)+(U11*5)+(V11*0.5)-(W11*0.5)+(X11*10)))/2)) -> 170 | AG11: =IF(AF11<1,($K$5-((AA11*1)+(AB11*3)+(AC11*5)+(AD11*0.5)-(AE11*0.5)+(AF11*10))),(($K$5-((AA11*1)+(AB11*3)+(AC11*5)+(AD11*0.5)-(AE11*0.5)+(AF11*10)))/2)) -> 170 | AO11: =IF(AN11<1,($K$5-((AI11*1)+(AJ11*3)+(AK11*5)+(AL11*0.5)-(AM11*0.5)+(AN11*10))),(($K$5-((AI11*1)+(AJ11*3)+(AK11*5)+(AL11*0.5)-(AM11*0.5)+(AN11*10)))/2)) -> 170 | AQ11: =(I11+Q11+Y11+AG11+AO11)-(MIN(I11,Q11,Y11,AG11,AO11))-(MAX(I11,Q11,Y11,AG11,AO11)) -> 510
A12: 2 | B12: STAHLI Désirée - STAHLI Sarah | I12: =IF(H12<1,($K$5-((C12*1)+(D12*3)+(E12*5)+(F12*0.5)-(G12*0.5)+(H12*10))),($K$5-((C12*1)+(D12*3)+(E12*5)+(F12*0.5)-(G12*0.5)+(H12*10)))/2) -> 170 | Q12: =IF(P12<1,($K$5-((K12*1)+(L12*3)+(M12*5)+(N12*0.5)-(O12*0.5)+(P12*10))),($K$5-((K12*1)+(L12*3)+(M12*5)+(N12*0.5)-(O12*0.5)+(P12*10)))/2) -> 170 | Y12: =IF(X12<1,($K$5-((S12*1)+(T12*3)+(U12*5)+(V12*0.5)-(W12*0.5)+(X12*10))),(($K$5-((S12*1)+(T12*3)+(U12*5)+(V12*0.5)-(W12*0.5)+(X12*10)))/2)) -> 170 | AG12: =IF(AF12<1,($K$5-((AA12*1)+(AB12*3)+(AC12*5)+(AD12*0.5)-(AE12*0.5)+(AF12*10))),(($K$5-((AA12*1)+(AB12*3)+(AC12*5)+(AD12*0.5)-(AE12*0.5)+(AF12*10)))/2)) -> 170 | AO12: =IF(AN12<1,($K$5-((AI12*1)+(AJ12*3)+(AK12*5)+(AL12*0.5)-(AM12*0.5)+(AN12*10))),(($K$5-((AI12*1)+(AJ12*3)+(AK12*5)+(AL12*0.5)-(AM12*0.5)+(AN12*10)))/2)) -> 170 | AQ12: =(I12+Q12+Y12+AG12+AO12)-(MIN(I12,Q12,Y12,AG12,AO12))-(MAX(I12,Q12,Y12,AG12,AO12)) -> 510
A13: 3 | B13: PILLER Madeleine - KOCH Thomas | I13: 170 | Q13: 170 | Y13: 170 | AG13: 170 | AO13: 170 | AQ13: 510
A14: 4 | B14: BENEY Fabrice - JEANNERET-BERRUEX Laurence | I14: 170 | Q14: 170 | Y14: 170 | AG14: 170 | AO14: 170 | AQ14: 510
A15: 5 | B15: BUSIGNY Denis - BUSIGNY Aurelie | I15: 170 | Q15: 170 | Y15: 170 | AG15: 170 | AO15: 170 | AQ15: 510

Sheet GOSHIN
C1: CHAMPIONNAT SUISSE DE KATA / SCHWEIZER KATA MEISTERSCHAFT
C2: WINTERTHUR, LE 17 JUIN 2018
C5: KODOKAN GOSHIN JUTSU | P5: 230
C7: Juge 1 | K7: Juge 2 | S7: Juge 3 | AA7: Juge 4 | AI7: Juge 5
C8: Petites fautes | D8: Fautes moyennes | E8: Grandes fautes | F8: Correction moins | G8: Correction plus | H8: Techniques oubliées | I8: Total Juge 1 | K8: Petites fautes | L8: Fautes moyennes | M8: Grandes fautes | N8: Correction moins | O8: Correction plus | P8: Techniques oubliées | Q8: Total Juge 2 | S8: Petites fautes | T8: Fautes moyennes | U8: Grandes fautes | V8: Correction moins | W8: Correction plus | X8: Techniques oubliées | Y8: Total Juge 3 | AA8: Petites fautes | AB8: Fautes moyennes | AC8: Grandes fautes | AD8: Correction moins | AE8: Correction plus | AF8: Techniques oubliées | AG8: Total Juge 4 | AI8: Petites fautes | AJ8: Fautes moyennes | AK8: Grandes fautes | AL8: Correction moins | AM8: Correction plus | AN8: Techniques oubliées | AO8: Total Juge 5
C9: 1 | D9: 3 | E9: 5 | F9: -0.5 | G9: +0.5 | H9: 10 | K9: 1 | L9: 3 | M9: 5 | N9: -0.5 | O9: +0.5 | P9: 10 | S9: 1 | T9: 3 | U9: 5 | V9: -0.5 | W9: +0.5 | X9: 10 | AA9: 1 | AB9: 3 | AC9: 5 | AD9: -0.5 | AE9: +0.5 | AF9: 10 | AI9: 1 | AJ9: 3 | AK9: 5 | AL9: -0.5 | AM9: +0.5 | AN9: 10
A11: 1 | B11: STAUFFER-IMBODEN Karine - LOY Karine | I11: =IF(H11<1,($P$5-((C11*1)+(D11*3)+(E11*5)+(F11*0.5)-(G11*0.5)+(H11*10))),($P$5-((C11*1)+(D11*3)+(E11*5)+(F11*0.5)-(G11*0.5)+(H11*10)))/2) -> 230 | Q11: =IF(P11<1,($P$5-((K11*1)+(L11*3)+(M11*5)+(N11*0.5)-(O11*0.5)+(P11*10))),($P$5-((K11*1)+(L11*3)+(M11*5)+(N11*0.5)-(O11*0.5)+(P11*10)))/2) -> 230 | Y11: =IF(X11<1,($P$5-((S11*1)+(T11*3)+(U11*5)+(V11*0.5)-(W11*0.5)+(X11*10))),(($P$5-((S11*1)+(T11*3)+(U11*5)+(V11*0.5)-(W11*0.5)+(X11*10)))/2)) -> 230 | AG11: =IF(AF11<1,($P$5-((AA11*1)+(AB11*3)+(AC11*5)+(AD11*0.5)-(AE11*0.5)+(AF11*10))),(($P$5-((AA11*1)+(AB11*3)+(AC11*5)+(AD11*0.5)-(AE11*0.5)+(AF11*10)))/2)) -> 230 | AO11: =IF(AN11<1,($P$5-((AI11*1)+(AJ11*3)+(AK11*5)+(AL11*0.5)-(AM11*0.5)+(AN11*10))),(($P$5-((AI11*1)+(AJ11*3)+(AK11*5)+(AL11*0.5)-(AM11*0.5)+(AN11*10)))/2)) -> 230 | AQ11: =(I11+Q11+Y11+AG11+AO11)-(MIN(I11,Q11,Y11,AG11,AO11))-(MAX(I11,Q11,Y11,AG11,AO11)) -> 690
A12: 2 | B12: GABERELL Denise - TURANO Alberto | I12: =IF(H12<1,($P$5-((C12*1)+(D12*3)+(E12*5)+(F12*0.5)-(G12*0.5)+(H12*10))),($P$5-((C12*1)+(D12*3)+(E12*5)+(F12*0.5)-(G12*0.5)+(H12*10)))/2) -> 230 | Q12: =IF(P12<1,($P$5-((K12*1)+(L12*3)+(M12*5)+(N12*0.5)-(O12*0.5)+(P12*10))),($P$5-((K12*1)+(L12*3)+(M12*5)+(N12*0.5)-(O12*0.5)+(P12*10)))/2) -> 230 | Y12: =IF(X12<1,($P$5-((S12*1)+(T12*3)+(U12*5)+(V12*0.5)-(W12*0.5)+(X12*10))),(($P$5-((S12*1)+(T12*3)+(U12*5)+(V12*0.5)-(W12*0.5)+(X12*10)))/2)) -> 230 | AG12: =IF(AF12<1,($P$5-((AA12*1)+(AB12*3)+(AC12*5)+(AD12*0.5)-(AE12*0.5)+(AF12*10))),(($P$5-((AA12*1)+(AB12*3)+(AC12*5)+(AD12*0.5)-(AE12*0.5)+(AF12*10)))/2)) -> 230 | AN12: 1 | AO12: =IF(AN12<1,($P$5-((AI12*1)+(AJ12*3)+(AK12*5)+(AL12*0.5)-(AM12*0.5)+(AN12*10))),(($P$5-((AI12*1)+(AJ12*3)+(AK12*5)+(AL12*0.5)-(AM12*0.5)+(AN12*10)))/2)) -> 110 | AQ12: =(I12+Q12+Y12+AG12+AO12)-(MIN(I12,Q12,Y12,AG12,AO12))-(MAX(I12,Q12,Y12,AG12,AO12)) -> 690
I13: 230 | Q13: =IF(P13<1,($P$5-((K13*1)+(L13*3)+(M13*5)+(N13*0.5)-(O13*0.5)+(P13*10))),($P$5-((K13*1)+(L13*3)+(M13*5)+(N13*0.5)-(O13*0.5)+(P13*10)))/2) -> 230 | Y13: =IF(X13<1,($P$5-((S13*1)+(T13*3)+(U13*5)+(V13*0.5)-(W13*0.5)+(X13*10))),(($P$5-((S13*1)+(T13*3)+(U13*5)+(V13*0.5)-(W13*0.5)+(X13*10)))/2)) -> 230 | AG13: =IF(AF13<1,($P$5-((AA13*1)+(AB13*3)+(AC13*5)+(AD13*0.5)-(AE13*0.5)+(AF13*10))),(($P$5-((AA13*1)+(AB13*3)+(AC13*5)+(AD13*0.5)-(AE13*0.5)+(AF13*10)))/2)) -> 230 | AO13: =IF(AN13<1,($P$5-((AI13*1)+(AJ13*3)+(AK13*5)+(AL13*0.5)-(AM13*0.5)+(AN13*10))),(($P$5-((AI13*1)+(AJ13*3)+(AK13*5)+(AL13*0.5)-(AM13*0.5)+(AN13*10)))/2)) -> 230 | AQ13: 690
I14: 230 | Q14: =IF(P14<1,($P$5-((K14*1)+(L14*3)+(M14*5)+(N14*0.5)-(O14*0.5)+(P14*10))),($P$5-((K14*1)+(L14*3)+(M14*5)+(N14*0.5)-(O14*0.5)+(P14*10)))/2) -> 230 | Y14: =IF(X14<1,($P$5-((S14*1)+(T14*3)+(U14*5)+(V14*0.5)-(W14*0.5)+(X14*10))),(($P$5-((S14*1)+(T14*3)+(U14*5)+(V14*0.5)-(W14*0.5)+(X14*10)))/2)) -> 230 | AG14: =IF(AF14<1,($P$5-((AA14*1)+(AB14*3)+(AC14*5)+(AD14*0.5)-(AE14*0.5)+(AF14*10))),(($P$5-((AA14*1)+(AB14*3)+(AC14*5)+(AD14*0.5)-(AE14*0.5)+(AF14*10)))/2)) -> 230 | AO14: =IF(AN14<1,($P$5-((AI14*1)+(AJ14*3)+(AK14*5)+(AL14*0.5)-(AM14*0.5)+(AN14*10))),(($P$5-((AI14*1)+(AJ14*3)+(AK14*5)+(AL14*0.5)-(AM14*0.5)+(AN14*10)))/2)) -> 230 | AQ14: 690
I15: 230 | Q15: =IF(P15<1,($P$5-((K15*1)+(L15*3)+(M15*5)+(N15*0.5)-(O15*0.5)+(P15*10))),($P$5-((K15*1)+(L15*3)+(M15*5)+(N15*0.5)-(O15*0.5)+(P15*10)))/2) -> 230 | Y15: =IF(X15<1,($P$5-((S15*1)+(T15*3)+(U15*5)+(V15*0.5)-(W15*0.5)+(X15*10))),(($P$5-((S15*1)+(T15*3)+(U15*5)+(V15*0.5)-(W15*0.5)+(X15*10)))/2)) -> 230 | AG15: =IF(AF15<1,($P$5-((AA15*1)+(AB15*3)+(AC15*5)+(AD15*0.5)-(AE15*0.5)+(AF15*10))),(($P$5-((AA15*1)+(AB15*3)+(AC15*5)+(AD15*0.5)-(AE15*0.5)+(AF15*10)))/2)) -> 230 | AO15: =IF(AN15<1,($P$5-((AI15*1)+(AJ15*3)+(AK15*5)+(AL15*0.5)-(AM15*0.5)+(AN15*10))),(($P$5-((AI15*1)+(AJ15*3)+(AK15*5)+(AL15*0.5)-(AM15*0.5)+(AN15*10)))/2)) -> 230 | AQ15: 690

Sheet Resultats
B1: CHAMPIONNAT SUISSE DE KATA 2018
B2: SCHWEIZER KATA MEISTERSCHAFT 2018
B3: WINTERTHUR, 17.06.2018
B5: Résultats / Ergebnisse
B7: ='NAGE-NO-KATA'!C5 -> NAGE-NO-KATA | C7: Points | D7: %
A8: 1 | B8: ='NAGE-NO-KATA'!B13 -> DÜRRENBERGER Reto - BRANDT Dominik | C8: 426 | D8: =C9/(170*3) -> 0.8049019608
A9: 2 | B9: ='NAGE-NO-KATA'!B14 -> PANDOLFI Zacharie - PANDOLFI Al | C9: 410.5 | D9: =C10/(170*3) -> 0.7696078431
A10: 3 | B10: ='NAGE-NO-KATA'!B15 -> KÜBLER Michèle - STAUFFER Sonia | C10: 392.5 | D10: =C11/(170*3) -> 0.7637254902
A11: 4 | B11: ='NAGE-NO-KATA'!B16 -> MOSER Dominic - MOSER Yanick | C11: 389.5 | D11: =C12/(170*3) -> 0.7362745098
A12: 5 | B12: ='NAGE-NO-KATA'!B11 -> REZGALLAH Yassin - REZGALLAH Samy | C12: 375.5 | D12: =C12/(170*3) -> 0.7362745098
B14: KATAME-NO-KATA
A15: 1 | B15: ='KATAME-NO-KATA'!B11 -> DÜRRENBERGER Reto - BRANDT Dominik | C15: 431 | D15: =C15/(170*3) -> 0.8450980392
A16: 2 | B16: ='KATAME-NO-KATA'!B12 -> STAHLI Désirée - STAHLI Sarah | C16: 418.5 | D16: 0.8205882353
A17: 3 | B17: ='KATAME-NO-KATA'!B13 -> STAUFFER Sonia - KÜBLER Michèle | C17: 397 | D17: 0.7784313725
B19: KIME-NO.KATA
A20: 1 | B20: ='KIME-NO-KATA'!B11 -> LOY Karine - BAYEJOO Pascal | C20: 543 | D20: =C20/(220*3) -> 0.8227272727
A21: 2 | B21: ='KIME-NO-KATA'!B12 -> BUSIGNY Denis - VILLEMIN Pascal | C21: 526 | D21: =C21/(220*3) -> 0.796969697
A22: 3 | B22: HERGER Serafin - WEBER Gian-Lucca | C22: 472 | D22: 0.7151515152
A23: 4 | B23: ='KIME-NO-KATA'!B13 -> UHLMANN Patrizia - SALUD Carlos | C23: 456 | D23: 0.6909090909
B25: JU-NO_KATA
A26: 1 | B26: ='JU-NO-KATA'!B14 -> BENEY Fabrice - JEANNERET-BERRUEX Laurence | C26: 420.5 | D26: =C26/(170*3) -> 0.8245098039
A27: 2 | B27: ='JU-NO-KATA'!B11 -> DUPRE Pascal - KUNZMANN Laura | C27: 412.5 | D27: =C27/(170*3) -> 0.8088235294
A28: 3 | B28: ='JU-NO-KATA'!B15 -> BUSIGNY Denis - BUSIGNY Aurelie | C28: 409.5 | D28: =C28/(170*3) -> 0.8029411765
A29: 4 | B29: ='JU-NO-KATA'!B13 -> PILLER Madeleine - KOCH Thomas | C29: 388.5 | D29: =C29/(170*3) -> 0.7617647059
A30: 5 | B30: ='JU-NO-KATA'!B12 -> STAHLI Désirée - STAHLI Sarah | C30: 375.5 | D30: =C30/(170*3) -> 0.7362745098
B32: KODOKAN GOSHIN JUTSU
A33: 1 | B33: =GOSHIN!B11 -> STAUFFER-IMBODEN Karine - LOY Karine | C33: 605 | D33: =C33/(230*3) -> 0.8768115942
A34: 2 | B34: =GOSHIN!B12 -> GABERELL Denise - TURANO Alberto | C34: 523 | D34: =C34/(230*3) -> 0.7579710145
B37: 2ème TOURNOI NATIONAL DE NAGE-NO-KATA
B39: NAGE-NO-KATA JEUNES 3 SERIES
A40: 1 | B40: ='Nage-no-Kata 3G'!B13 -> ASTON Victoria - STRÖSLIN Leonie | C40: 256.5 | D40: =C40/(110*3) -> 0.7772727273
A41: 2 | B41: ='Nage-no-Kata 3G'!B14 -> BRÄNDLE Shaila - UHLMANN Laura | C41: 241 | D41: =C41/(110*3) -> 0.7303030303
A42: 3 | B42: ='Nage-no-Kata 3G'!B16 -> BIGOT Yoan - GEX-FABRY Candide | C42: 239 | D42: =C42/(110*3) -> 0.7242424242
A43: 4 | B43: ='Nage-no-Kata 3G'!B15 -> GEX-FABRY Félicie - VITELLOZZI Ricardo | C43: 219.5 | D43: =C43/(110*3) -> 0.6651515152
A44: 5 | B44: ='Nage-no-Kata 3G'!B11 -> KAMBER Hector - KAMBER Emma | C44: 186 | D44: =C44/(110*3) -> 0.5636363636
A45: 6 | B45: ='Nage-no-Kata 3G'!B12 -> ZÜRCHER Mael - WERNLI Nadine | C45: 181 | D45: =C45/(110*3) -> 0.5484848485
